[Event "Early-Titled-Tuesday-Blitz-March-26-2024"]
[Site "Chess.com"]
[Date "2024.03.26"]
[Round "6"]
[White "wqws"]
[Black "sergoy"]
[Result "1-0"]
[WhiteElo "2741"]
[BlackElo "2905"]
[TimeControl "180+1"]
[EndTime "9:03:04 PDT"]
[Termination "wqws won by resignation"]

1. e4 {[%clk 0:03:00.9]} 1... c5 {[%clk 0:02:59.4]} 2. Nf3 {[%clk 0:03:01.2]}
2... d6 {[%clk 0:02:59.8]} 3. d4 {[%clk 0:03:01.7]} 3... cxd4 {[%clk 0:03:00.7]}
4. Nxd4 {[%clk 0:03:02.6]} 4... Nf6 {[%clk 0:03:01.2]} 5. Nc3 {[%clk 0:03:03.1]}
5... a6 {[%clk 0:03:01.9]} 6. Bg5 {[%clk 0:03:03.7]} 6... Nbd7 {[%clk
0:03:00.7]} 7. Bc4 {[%clk 0:03:03.3]} 7... Qb6 {[%clk 0:02:59.4]} 8. Bb3 {[%clk
0:03:03.2]} 8... e6 {[%clk 0:02:59.1]} 9. Qd2 {[%clk 0:03:03.6]} 9... Be7 {[%clk
0:02:57.9]} 10. O-O-O {[%clk 0:03:04]} 10... Nc5 {[%clk 0:02:58.3]} 11. Rhe1
{[%clk 0:03:01.9]} 11... O-O {[%clk 0:02:56.1]} 12. Kb1 {[%clk 0:02:58.8]} 12...
Qc7 {[%clk 0:02:55.3]} 13. f4 {[%clk 0:02:58.6]} 13... h6 {[%clk 0:02:46.2]} 14.
h4 {[%clk 0:02:55.8]} 14... Nxb3 {[%clk 0:02:25.7]} 15. axb3 {[%clk 0:02:32.7]}
15... Rd8 {[%clk 0:02:10.2]} 16. g4 {[%clk 0:02:27.3]} 16... b5 {[%clk
0:02:03.6]} 17. Bxf6 {[%clk 0:02:25]} 17... Bxf6 {[%clk 0:02:00.7]} 18. g5
{[%clk 0:02:25.4]} 18... Bxd4 {[%clk 0:01:45.2]} 19. Qxd4 {[%clk 0:02:25.3]}
19... h5 {[%clk 0:01:45.7]} 20. g6 {[%clk 0:02:14.7]} 20... fxg6 {[%clk
0:01:45.8]} 21. e5 {[%clk 0:02:14.6]} 21... d5 {[%clk 0:01:43.6]} 22. Ne4 {[%clk
0:02:12.1]} 22... Bd7 {[%clk 0:01:27.3]} 23. Nd6 {[%clk 0:02:12.2]} 23... Be8
{[%clk 0:01:26.5]} 24. Rg1 {[%clk 0:02:11.9]} 24... Kh7 {[%clk 0:01:26]} 25. Rg5
{[%clk 0:02:10.3]} 25... Rxd6 {[%clk 0:01:18.7]} 26. exd6 {[%clk 0:02:10.4]}
26... Qxd6 {[%clk 0:01:19.6]} 27. Rdg1 {[%clk 0:02:08.5]} 27... Rc8 {[%clk
0:01:18.7]} 28. Rxh5+ {[%clk 0:02:04.4]} 28... Kg8 {[%clk 0:01:15.2]} 29. Rhg5
{[%clk 0:02:04.7]} 29... Qc7 {[%clk 0:01:14.9]} 30. Qd3 {[%clk 0:01:56]} 30...
Qxf4 {[%clk 0:01:12.6]} 31. h5 {[%clk 0:01:55.1]} 31... Qh2 {[%clk 0:00:50.8]}
32. hxg6 {[%clk 0:01:50.4]} 32... b4 {[%clk 0:00:51]} 33. R5g2 {[%clk
0:01:45.5]} 33... Qh5 {[%clk 0:00:47.2]} 34. Qxa6 {[%clk 0:01:28.3]} 34... Bd7
{[%clk 0:00:44.9]} 35. Qd6 {[%clk 0:01:25]} 35... Rd8 {[%clk 0:00:42.9]} 36. Qe7
{[%clk 0:01:24.6]} 1-0

[Event "Early-Titled-Tuesday-Blitz-March-26-2024"]
[Site "Chess.com"]
[Date "2024.03.26"]
[Round "6"]
[White "chessdjw"]
[Black "dropstoneDP"]
[Result "1/2-1/2"]
[WhiteElo "2813"]
[BlackElo "2987"]
[TimeControl "180+1"]
[EndTime "9:03:08 PDT"]
[Termination "Game drawn by repetition"]

1. d4 {[%clk 0:03:00.9]} 1... d5 {[%clk 0:02:59.5]} 2. c4 {[%clk 0:03:00.9]}
2... dxc4 {[%clk 0:03:00.4]} 3. Nf3 {[%clk 0:03:01.1]} 3... Nf6 {[%clk
0:03:00.7]} 4. e3 {[%clk 0:03:01.4]} 4... e6 {[%clk 0:03:00.8]} 5. Bxc4 {[%clk
0:03:01.9]} 5... a6 {[%clk 0:03:01]} 6. O-O {[%clk 0:03:02.1]} 6... c5 {[%clk
0:03:01.5]} 7. Be2 {[%clk 0:03:02]} 7... cxd4 {[%clk 0:02:57.9]} 8. Nxd4 {[%clk
0:03:01.1]} 8... e5 {[%clk 0:02:58.2]} 9. Nf3 {[%clk 0:03:01.2]} 9... Qxd1
{[%clk 0:02:58.4]} 10. Rxd1 {[%clk 0:03:01.1]} 10... Nc6 {[%clk 0:02:58.3]} 11.
b3 {[%clk 0:02:55.2]} 11... Bf5 {[%clk 0:02:49.2]} 12. Bb2 {[%clk 0:02:54.3]}
12... Nd7 {[%clk 0:02:49.7]} 13. Nc3 {[%clk 0:02:50.4]} 13... Nb6 {[%clk
0:02:40.4]} 14. e4 {[%clk 0:02:31]} 14... Bg4 {[%clk 0:02:33.9]} 15. Nd5 {[%clk
0:02:13.9]} 15... Nxd5 {[%clk 0:02:34.2]} 16. exd5 {[%clk 0:02:13.2]} 16... Bxf3
{[%clk 0:02:34.8]} 17. Bxf3 {[%clk 0:02:11.2]} 17... Nd4 {[%clk 0:02:34.5]} 18.
Bxd4 {[%clk 0:02:08.9]} 18... exd4 {[%clk 0:02:35.4]} 19. Rxd4 {[%clk
0:02:03.3]} 19... Bd6 {[%clk 0:02:34.6]} 20. Re1+ {[%clk 0:01:57.2]} 20... Kd8
{[%clk 0:02:33.5]} 21. Rc4 {[%clk 0:01:49.5]} 21... Rc8 {[%clk 0:02:29.7]} 22.
Rxc8+ {[%clk 0:01:36.7]} 22... Kxc8 {[%clk 0:02:30.6]} 23. g3 {[%clk 0:01:36.9]}
23... Kd8 {[%clk 0:02:29.9]} 24. Bg4 {[%clk 0:01:28.2]} 24... g6 {[%clk
0:02:20.7]} 25. h4 {[%clk 0:01:27.9]} 25... f5 {[%clk 0:02:18.7]} 26. Bf3 {[%clk
0:01:25.6]} 26... Re8 {[%clk 0:02:18.1]} 27. Re6 {[%clk 0:01:25.6]} 27... Rxe6
{[%clk 0:02:09.3]} 28. dxe6 {[%clk 0:01:25.7]} 28... b6 {[%clk 0:02:10.2]} 29.
Bb7 {[%clk 0:01:23.6]} 29... a5 {[%clk 0:02:09.4]} 30. a4 {[%clk 0:01:03.1]}
30... Ke7 {[%clk 0:02:08.9]} 31. Bd5 {[%clk 0:01:03.7]} 31... Kf6 {[%clk
0:02:07.3]} 32. Kg2 {[%clk 0:01:00.4]} 32... h6 {[%clk 0:02:07.5]} 33. f3 {[%clk
0:00:59.2]} 33... g5 {[%clk 0:01:54.2]} 34. hxg5+ {[%clk 0:00:53.4]} 34... hxg5
{[%clk 0:01:55.1]} 35. g4 {[%clk 0:00:53.4]} 35... Ke5 {[%clk 0:01:49.3]} 36.
Bc4 {[%clk 0:00:47.6]} 36... f4 {[%clk 0:01:47.5]} 37. Kf1 {[%clk 0:00:45.2]}
37... Kd4 {[%clk 0:01:47.4]} 38. Ke2 {[%clk 0:00:45.7]} 38... Be7 {[%clk
0:01:47.8]} 39. Kd2 {[%clk 0:00:43.5]} 39... Bd6 {[%clk 0:01:47.6]} 40. Kc2
{[%clk 0:00:41.5]} 40... Be7 {[%clk 0:01:47.8]} 41. Bb5 {[%clk 0:00:40.9]} 41...
Bd6 {[%clk 0:01:47.7]} 42. Bc6 {[%clk 0:00:41.1]} 42... Be7 {[%clk 0:01:47.9]}
43. Be4 {[%clk 0:00:41.5]} 43... Bd6 {[%clk 0:01:48.1]} 44. Kb2 {[%clk
0:00:35.9]} 44... Be7 {[%clk 0:01:48.2]} 45. Kc2 {[%clk 0:00:32.4]} 45... Bd6
{[%clk 0:01:48.3]} 46. Kb2 {[%clk 0:00:31.2]} 46... Be7 {[%clk 0:01:48.8]} 47.
Kc2 {[%clk 0:00:31.9]} 1/2-1/2

[Event "Early-Titled-Tuesday-Blitz-March-26-2024"]
[Site "Chess.com"]
[Date "2024.03.26"]
[Round "6"]
[White "Korchmar_Vasiliy"]
[Black "PierrotFace"]
[Result "1-0"]
[WhiteElo "2705"]
[BlackElo "2521"]
[TimeControl "180+1"]
[EndTime "9:03:10 PDT"]
[Termination "Korchmar_Vasiliy won by resignation"]

1. e4 {[%clk 0:03:00.9]} 1... c5 {[%clk 0:02:59.2]} 2. d4 {[%clk 0:03:00.7]}
2... cxd4 {[%clk 0:02:59.1]} 3. Qxd4 {[%clk 0:03:01.6]} 3... Nc6 {[%clk
0:02:59]} 4. Qd3 {[%clk 0:03:02.3]} 4... Nf6 {[%clk 0:02:58.8]} 5. Nc3 {[%clk
0:03:02.9]} 5... d6 {[%clk 0:02:56.2]} 6. Nf3 {[%clk 0:03:02.3]} 6... Qb6 {[%clk
0:02:55.5]} 7. Be2 {[%clk 0:03:00.3]} 7... e6 {[%clk 0:02:51.4]} 8. O-O {[%clk
0:02:53.8]} 8... a6 {[%clk 0:02:51.5]} 9. Bg5 {[%clk 0:02:51.2]} 9... h6 {[%clk
0:02:42.7]} 10. Bxf6 {[%clk 0:02:38.2]} 10... gxf6 {[%clk 0:02:43.6]} 11. Nd1
{[%clk 0:02:21.6]} 11... Rg8 {[%clk 0:02:42.3]} 12. Ne3 {[%clk 0:02:17.4]} 12...
Bd7 {[%clk 0:02:38]} 13. Nc4 {[%clk 0:02:15.8]} 13... Qc7 {[%clk 0:02:37]} 14.
Rfd1 {[%clk 0:02:15.7]} 14... O-O-O {[%clk 0:02:34.4]} 15. Nxd6+ {[%clk
0:02:12.6]} 15... Kb8 {[%clk 0:02:34.8]} 16. Nxf7 {[%clk 0:02:12.2]} 16... Nb4
{[%clk 0:02:23.4]} 17. Qd2 {[%clk 0:02:05.8]} 17... Rg7 {[%clk 0:01:45.1]} 18.
Nxd8 {[%clk 0:02:03.9]} 18... Qxd8 {[%clk 0:01:46]} 19. a3 {[%clk 0:01:48.8]}
19... Nc6 {[%clk 0:01:45.6]} 20. b4 {[%clk 0:01:49.4]} 20... Qc7 {[%clk
0:01:38.2]} 21. b5 {[%clk 0:01:34.6]} 21... axb5 {[%clk 0:01:37.1]} 22. Bxb5
{[%clk 0:01:34.3]} 22... Ne5 {[%clk 0:01:37]} 23. Nxe5 {[%clk 0:01:32]} 23...
Bxb5 {[%clk 0:01:35.6]} 24. Qd8+ {[%clk 0:01:29.9]} 24... Qc8 {[%clk 0:01:35.8]}
25. Rab1 {[%clk 0:01:13]} 25... fxe5 {[%clk 0:01:07.4]} 26. Rxb5 {[%clk
0:01:11.1]} 26... Bxa3 {[%clk 0:01:03.8]} 27. g3 {[%clk 0:01:01.5]} 27... Rc7
{[%clk 0:01:00.2]} 28. Rxe5 {[%clk 0:00:53.5]} 28... Rxc2 {[%clk 0:00:58.8]} 29.
Rxe6 {[%clk 0:00:52.1]} 29... Ka7 {[%clk 0:00:58]} 30. Qa5+ {[%clk 0:00:46.5]}
30... Kb8 {[%clk 0:00:57.4]} 31. Rd8 {[%clk 0:00:46.7]} 31... Rc1+ {[%clk
0:00:57.8]} 32. Kg2 {[%clk 0:00:46.7]} 1-0

[Event "Early-Titled-Tuesday-Blitz-March-26-2024"]
[Site "Chess.com"]
[Date "2024.03.26"]
[Round "6"]
[White "Marielchessy"]
[Black "JosefineHeinemann"]
[Result "0-1"]
[WhiteElo "2349"]
[BlackElo "2516"]
[TimeControl "180+1"]
[EndTime "9:03:10 PDT"]
[Termination "JosefineHeinemann won by resignation"]

1. e4 {[%clk 0:03:00.9]} 1... c5 {[%clk 0:02:59]} 2. Nf3 {[%clk 0:03:01.2]} 2...
d6 {[%clk 0:02:58.9]} 3. d4 {[%clk 0:03:01.6]} 3... cxd4 {[%clk 0:02:59.8]} 4.
Nxd4 {[%clk 0:03:00.6]} 4... Nf6 {[%clk 0:03:00.2]} 5. Nc3 {[%clk 0:03:01]} 5...
a6 {[%clk 0:02:59.6]} 6. Bg5 {[%clk 0:02:59.9]} 6... e6 {[%clk 0:02:58.5]} 7. f4
{[%clk 0:03:00.2]} 7... h6 {[%clk 0:02:58.9]} 8. Bh4 {[%clk 0:02:59.2]} 8...
Nbd7 {[%clk 0:02:58.8]} 9. Qf3 {[%clk 0:02:58.8]} 9... e5 {[%clk 0:02:58.3]} 10.
Nf5 {[%clk 0:02:57.4]} 10... exf4 {[%clk 0:02:57.6]} 11. O-O-O {[%clk 0:02:57]}
11... g5 {[%clk 0:02:56.3]} 12. Nxd6+ {[%clk 0:02:48.5]} 12... Bxd6 {[%clk
0:02:56]} 13. Rxd6 {[%clk 0:02:48.9]} 13... Qe7 {[%clk 0:02:38.5]} 14. Rxf6
{[%clk 0:02:19.1]} 14... Nxf6 {[%clk 0:02:36.2]} 15. Bf2 {[%clk 0:02:17.6]}
15... Be6 {[%clk 0:02:34.9]} 16. Bd3 {[%clk 0:02:14.4]} 16... Bg4 {[%clk
0:01:50.6]} 17. e5 {[%clk 0:02:05.6]} 17... Bxf3 {[%clk 0:01:47.9]} 18. exf6
{[%clk 0:02:05.5]} 18... Qxf6 {[%clk 0:01:47.1]} 19. gxf3 {[%clk 0:02:04.7]}
19... O-O {[%clk 0:01:46.3]} 20. h4 {[%clk 0:02:01.3]} 20... Rfe8 {[%clk
0:01:32.4]} 21. hxg5 {[%clk 0:02:00.4]} 21... hxg5 {[%clk 0:01:32.9]} 22. Ne4
{[%clk 0:01:53.8]} 22... Rxe4 {[%clk 0:01:21.9]} 23. Bxe4 {[%clk 0:01:53.1]}
23... Rd8 {[%clk 0:01:22.5]} 24. c3 {[%clk 0:01:46.3]} 24... b5 {[%clk
0:01:17.2]} 25. a3 {[%clk 0:01:45.7]} 25... a5 {[%clk 0:01:13.7]} 26. Bh7+
{[%clk 0:01:39.8]} 26... Kg7 {[%clk 0:01:11.8]} 27. Be4 {[%clk 0:01:39.5]} 27...
b4 {[%clk 0:01:05.1]} 28. axb4 {[%clk 0:01:38.4]} 28... axb4 {[%clk 0:01:04.9]}
29. Kc2 {[%clk 0:01:38.7]} 29... bxc3 {[%clk 0:00:59.4]} 30. bxc3 {[%clk
0:01:38.2]} 30... Qa6 {[%clk 0:00:52.2]} 31. Bd4+ {[%clk 0:01:29.3]} 31... Rxd4
{[%clk 0:00:51.6]} 32. cxd4 {[%clk 0:01:29.3]} 32... Qc4+ {[%clk 0:00:51.8]} 33.
Kd1 {[%clk 0:01:25.1]} 33... Qxd4+ {[%clk 0:00:51.9]} 34. Ke2 {[%clk 0:01:25.8]}
34... Qe3+ {[%clk 0:00:48.3]} 35. Kf1 {[%clk 0:01:25.9]} 35... f5 {[%clk
0:00:48.1]} 36. Bc6 {[%clk 0:01:16.6]} 36... Qc1+ {[%clk 0:00:42]} 37. Kg2
{[%clk 0:01:16.7]} 37... Qxc6 {[%clk 0:00:42.2]} 0-1

[Event "Early-Titled-Tuesday-Blitz-March-26-2024"]
[Site "Chess.com"]
[Date "2024.03.26"]
[Round "6"]
[White "crescentmoon2411"]
[Black "Andrey_Klymchuk"]
[Result "1-0"]
[WhiteElo "2889"]
[BlackElo "2696"]
[TimeControl "180+1"]
[EndTime "9:03:11 PDT"]
[Termination "crescentmoon2411 won by checkmate"]

1. d4 {[%clk 0:03:00.9]} 1... Nf6 {[%clk 0:02:59.4]} 2. c4 {[%clk 0:03:01.4]}
2... c5 {[%clk 0:02:59.3]} 3. d5 {[%clk 0:03:01.7]} 3... b5 {[%clk 0:02:59.5]}
4. cxb5 {[%clk 0:03:02.6]} 4... a6 {[%clk 0:03:00.1]} 5. bxa6 {[%clk 0:03:03.3]}
5... g6 {[%clk 0:03:00.2]} 6. Nc3 {[%clk 0:03:04.2]} 6... Bg7 {[%clk 0:03:00.6]}
7. e4 {[%clk 0:03:05]} 7... O-O {[%clk 0:03:00.8]} 8. Nf3 {[%clk 0:03:05.3]}
8... Qa5 {[%clk 0:03:00.2]} 9. Bd3 {[%clk 0:03:04.7]} 9... Nxd5 {[%clk
0:02:56.8]} 10. exd5 {[%clk 0:03:02.6]} 10... Bxc3+ {[%clk 0:02:56.1]} 11. bxc3
{[%clk 0:03:02.3]} 11... Qxc3+ {[%clk 0:02:56.2]} 12. Qd2 {[%clk 0:03:03]} 12...
Qxa1 {[%clk 0:02:56.4]} 13. O-O {[%clk 0:03:03.8]} 13... Qg7 {[%clk 0:02:55.4]}
14. Re1 {[%clk 0:03:01]} 14... f6 {[%clk 0:02:54.5]} 15. h4 {[%clk 0:02:49.8]}
15... Bxa6 {[%clk 0:02:52.8]} 16. Bb1 {[%clk 0:02:46.5]} 16... d6 {[%clk
0:02:48.2]} 17. h5 {[%clk 0:02:45.6]} 17... g5 {[%clk 0:02:08.5]} 18. h6 {[%clk
0:02:41.1]} 18... Qxh6 {[%clk 0:02:07.2]} 19. Rxe7 {[%clk 0:02:39.8]} 19... Rf7
{[%clk 0:02:06.2]} 20. Qe3 {[%clk 0:02:34.9]} 20... Bb5 {[%clk 0:00:43.8]} 21.
Qe6 {[%clk 0:02:30.3]} 21... Qg7 {[%clk 0:00:39.6]} 22. Bxg5 {[%clk 0:02:07.6]}
22... Bd7 {[%clk 0:00:29.1]} 23. Qxd6 {[%clk 0:01:52]} 23... fxg5 {[%clk
0:00:24.7]} 24. Rxf7 {[%clk 0:01:47.5]} 24... Qxf7 {[%clk 0:00:23.5]} 25. Nxg5
{[%clk 0:01:46.4]} 25... Qg7 {[%clk 0:00:23.8]} 26. Nxh7 {[%clk 0:01:39.7]}
26... Kf7 {[%clk 0:00:11.2]} 27. f4 {[%clk 0:01:33.9]} 27... Qd4+ {[%clk
0:00:10.6]} 28. Kh2 {[%clk 0:01:33]} 28... Ra4 {[%clk 0:00:09.2]} 29. Qf8#
{[%clk 0:01:29.6]} 1-0

[Event "Early-Titled-Tuesday-Blitz-March-26-2024"]
[Site "Chess.com"]
[Date "2024.03.26"]
[Round "6"]
[White "Chess_Gainz"]
[Black "Donskov_AN"]
[Result "0-1"]
[WhiteElo "2550"]
[BlackElo "2379"]
[TimeControl "180+1"]
[EndTime "9:03:14 PDT"]
[Termination "Donskov_AN won by resignation"]

1. e4 {[%clk 0:03:00.2]} 1... c5 {[%clk 0:02:59.8]} 2. Nf3 {[%clk 0:03:00.3]}
2... e6 {[%clk 0:03:00.3]} 3. d4 {[%clk 0:03:00.8]} 3... cxd4 {[%clk 0:03:01.2]}
4. Nxd4 {[%clk 0:03:01.5]} 4... a6 {[%clk 0:03:00.8]} 5. Bd3 {[%clk 0:03:01.3]}
5... Qc7 {[%clk 0:03:01.2]} 6. O-O {[%clk 0:03:01.5]} 6... b6 {[%clk 0:03:01.6]}
7. c4 {[%clk 0:02:59.3]} 7... Bb7 {[%clk 0:03:02]} 8. Nc3 {[%clk 0:02:59.2]}
8... h5 {[%clk 0:03:01.9]} 9. h3 {[%clk 0:02:34.3]} 9... Nf6 {[%clk 0:02:58]}
10. Qe2 {[%clk 0:02:29.2]} 10... d6 {[%clk 0:02:50]} 11. Bd2 {[%clk 0:02:23.2]}
11... Nc6 {[%clk 0:02:49.3]} 12. Nxc6 {[%clk 0:02:20.7]} 12... Qxc6 {[%clk
0:02:49.2]} 13. Nd5 {[%clk 0:01:54.6]} 13... Nd7 {[%clk 0:02:49]} 14. f4 {[%clk
0:01:49.3]} 14... Nc5 {[%clk 0:02:46.2]} 15. Bc2 {[%clk 0:01:48.5]} 15... h4
{[%clk 0:02:25.8]} 16. f5 {[%clk 0:01:43]} 16... O-O-O {[%clk 0:02:23]} 17. fxe6
{[%clk 0:01:41.1]} 17... fxe6 {[%clk 0:02:23.1]} 18. Nc3 {[%clk 0:01:39.1]}
18... Be7 {[%clk 0:02:21]} 19. b4 {[%clk 0:01:31.2]} 19... Nd7 {[%clk
0:02:19.3]} 20. Nd5 {[%clk 0:01:24.8]} 20... Bf6 {[%clk 0:02:14.7]} 21. Nxf6
{[%clk 0:01:21.5]} 21... gxf6 {[%clk 0:02:10]} 22. Bb3 {[%clk 0:01:11.4]} 22...
Qxe4 {[%clk 0:02:06.3]} 23. Qxe4 {[%clk 0:01:03.2]} 23... Bxe4 {[%clk
0:02:07.2]} 24. Rae1 {[%clk 0:00:50.7]} 24... f5 {[%clk 0:02:05.1]} 25. Rf2
{[%clk 0:00:32.9]} 25... Rdg8 {[%clk 0:02:00.5]} 26. Bc3 {[%clk 0:00:22.1]}
26... Rh6 {[%clk 0:01:58.6]} 27. c5 {[%clk 0:00:15.3]} 27... d5 {[%clk
0:01:58.6]} 28. cxb6 {[%clk 0:00:13.2]} 28... Nxb6 {[%clk 0:01:58.3]} 29. Bd4
{[%clk 0:00:14.1]} 29... Nc4 {[%clk 0:01:58]} 30. Rc1 {[%clk 0:00:13.5]} 30...
Rhg6 {[%clk 0:01:57.6]} 31. Bxc4 {[%clk 0:00:12.5]} 31... Rxg2+ {[%clk
0:01:56.9]} 32. Rxg2 {[%clk 0:00:13.4]} 32... Rxg2+ {[%clk 0:01:57.5]} 33. Kf1
{[%clk 0:00:14.3]} 33... dxc4 {[%clk 0:01:58.2]} 34. Rxc4+ {[%clk 0:00:14.9]}
34... Kd7 {[%clk 0:01:58.9]} 35. Be5 {[%clk 0:00:15]} 35... Rxa2 {[%clk
0:01:54.1]} 36. Rc7+ {[%clk 0:00:15]} 36... Kd8 {[%clk 0:01:54.5]} 37. Rh7
{[%clk 0:00:14.4]} 37... Bg2+ {[%clk 0:01:50.7]} 38. Ke1 {[%clk 0:00:14]} 38...
Bxh3 {[%clk 0:01:51]} 39. Rxh4 {[%clk 0:00:14.9]} 39... Bg4 {[%clk 0:01:51.4]}
40. Rh7 {[%clk 0:00:14.9]} 40... Re2+ {[%clk 0:01:51]} 0-1

[Event "Early-Titled-Tuesday-Blitz-March-26-2024"]
[Site "Chess.com"]
[Date "2024.03.26"]
[Round "6"]
[White "Tolya2"]
[Black "Vision_64"]
[Result "1-0"]
[WhiteElo "2481"]
[BlackElo "2244"]
[TimeControl "180+1"]
[EndTime "9:03:16 PDT"]
[Termination "Tolya2 won by resignation"]

1. Nf3 {[%clk 0:03:00.9]} 1... Nf6 {[%clk 0:02:59.6]} 2. c4 {[%clk 0:02:59.9]}
2... g6 {[%clk 0:02:59.7]} 3. Nc3 {[%clk 0:02:59]} 3... Bg7 {[%clk 0:03:00.4]}
4. e4 {[%clk 0:02:58.8]} 4... d6 {[%clk 0:03:01.1]} 5. d4 {[%clk 0:02:58]} 5...
O-O {[%clk 0:03:00.9]} 6. Be2 {[%clk 0:02:58.4]} 6... Nbd7 {[%clk 0:03:00.8]} 7.
e5 {[%clk 0:02:57.9]} 7... dxe5 {[%clk 0:02:55.2]} 8. dxe5 {[%clk 0:02:56.7]}
8... Ng4 {[%clk 0:02:49.2]} 9. e6 {[%clk 0:02:56.6]} 9... fxe6 {[%clk
0:02:28.5]} 10. O-O {[%clk 0:02:55.4]} 10... Nc5 {[%clk 0:02:20.8]} 11. Bg5
{[%clk 0:02:54]} 11... Nf6 {[%clk 0:02:14.2]} 12. Qc2 {[%clk 0:02:47.3]} 12...
c6 {[%clk 0:02:09.6]} 13. b4 {[%clk 0:02:42.4]} 13... Ncd7 {[%clk 0:02:00]} 14.
Rad1 {[%clk 0:02:41]} 14... Qc7 {[%clk 0:02:00]} 15. Bh4 {[%clk 0:02:39.6]}
15... e5 {[%clk 0:01:44]} 16. Ng5 {[%clk 0:02:34.1]} 16... Nb6 {[%clk
0:01:35.2]} 17. Bg3 {[%clk 0:02:26.1]} 17... Bf5 {[%clk 0:01:28.8]} 18. Qb3
{[%clk 0:02:24.2]} 18... Nh5 {[%clk 0:01:27.6]} 19. Bxh5 {[%clk 0:02:20.9]}
19... gxh5 {[%clk 0:01:26.6]} 20. Rfe1 {[%clk 0:02:17]} 20... Kh8 {[%clk
0:01:20.5]} 21. c5 {[%clk 0:02:14]} 21... Nd7 {[%clk 0:01:07.4]} 22. Nf7+ {[%clk
0:02:09.9]} 22... Rxf7 {[%clk 0:00:57.3]} 23. Qxf7 {[%clk 0:02:10.3]} 23... Bf6
{[%clk 0:00:57.6]} 24. Qxh5 {[%clk 0:01:59.9]} 24... Bg6 {[%clk 0:00:56.2]} 25.
Qe2 {[%clk 0:01:57.9]} 25... Rf8 {[%clk 0:00:41.2]} 26. Ne4 {[%clk 0:01:57]}
26... Bg7 {[%clk 0:00:40.7]} 27. h4 {[%clk 0:01:51.7]} 27... Nf6 {[%clk
0:00:19.6]} 28. Ng5 {[%clk 0:01:50.2]} 28... Bf5 {[%clk 0:00:14.5]} 29. Qxe5
{[%clk 0:01:47.6]} 29... Qxe5 {[%clk 0:00:12.7]} 30. Bxe5 {[%clk 0:01:47.1]}
30... Bg4 {[%clk 0:00:13.6]} 31. f3 {[%clk 0:01:45.3]} 31... Bc8 {[%clk
0:00:11.7]} 32. Ne4 {[%clk 0:01:43.3]} 32... Nxe4 {[%clk 0:00:11.4]} 33. Bxg7+
{[%clk 0:01:42.4]} 33... Kxg7 {[%clk 0:00:10.8]} 34. Rxe4 {[%clk 0:01:42.8]}
34... Bf5 {[%clk 0:00:10.5]} 35. Rxe7+ {[%clk 0:01:41.8]} 1-0

[Event "Early-Titled-Tuesday-Blitz-March-26-2024"]
[Site "Chess.com"]
[Date "2024.03.26"]
[Round "6"]
[White "klimkoj"]
[Black "lucasran"]
[Result "1-0"]
[WhiteElo "2822"]
[BlackElo "2620"]
[TimeControl "180+1"]
[EndTime "9:03:17 PDT"]
[Termination "klimkoj won by checkmate"]

1. c4 {[%clk 0:03:00.9]} 1... c5 {[%clk 0:02:43]} 2. Nf3 {[%clk 0:03:00.6]} 2...
Nc6 {[%clk 0:02:23.9]} 3. d4 {[%clk 0:03:00.2]} 3... cxd4 {[%clk 0:02:24]} 4.
Nxd4 {[%clk 0:03:01.1]} 4... g6 {[%clk 0:02:23.9]} 5. e4 {[%clk 0:02:59.7]} 5...
Nf6 {[%clk 0:02:22.3]} 6. Nc3 {[%clk 0:02:59.8]} 6... Nxd4 {[%clk 0:02:22.6]} 7.
Qxd4 {[%clk 0:02:59.8]} 7... d6 {[%clk 0:02:23.1]} 8. Be2 {[%clk 0:02:58.6]}
8... Bg7 {[%clk 0:02:22.5]} 9. Bg5 {[%clk 0:02:58.8]} 9... O-O {[%clk
0:02:22.2]} 10. Qe3 {[%clk 0:02:59.2]} 10... a5 {[%clk 0:02:18.2]} 11. O-O
{[%clk 0:02:52]} 11... a4 {[%clk 0:02:11.6]} 12. f4 {[%clk 0:02:46.1]} 12... Be6
{[%clk 0:01:28.4]} 13. f5 {[%clk 0:02:21.4]} 13... Bd7 {[%clk 0:01:27.7]} 14.
Rad1 {[%clk 0:02:19.6]} 14... Qc7 {[%clk 0:01:17.4]} 15. e5 {[%clk 0:02:03.2]}
15... dxe5 {[%clk 0:01:13.1]} 16. Bxf6 {[%clk 0:02:02.1]} 16... Bxf6 {[%clk
0:00:50.1]} 17. Nd5 {[%clk 0:02:02]} 17... Qc6 {[%clk 0:00:23.9]} 18. fxg6
{[%clk 0:02:01.7]} 18... Rae8 {[%clk 0:00:18.4]} 19. gxf7+ {[%clk 0:01:51.2]}
19... Rxf7 {[%clk 0:00:17.5]} 20. Bh5 {[%clk 0:01:51.8]} 20... Rg7 {[%clk
0:00:09]} 21. Bxe8 {[%clk 0:01:47.7]} 21... Bxe8 {[%clk 0:00:09.9]} 22. Rxf6
{[%clk 0:01:47.5]} 22... exf6 {[%clk 0:00:10.5]} 23. Rf1 {[%clk 0:01:41.7]}
23... Rf7 {[%clk 0:00:03.5]} 24. Rxf6 {[%clk 0:01:29.2]} 24... Qxc4 {[%clk
0:00:03.6]} 25. Qg5+ {[%clk 0:01:27.5]} 25... Rg7 {[%clk 0:00:03.6]} 26. Ne7+
{[%clk 0:01:26.8]} 26... Kh8 {[%clk 0:00:03.1]} 27. Rf8+ {[%clk 0:01:27]} 27...
Rg8 {[%clk 0:00:02.7]} 28. Rxg8+ {[%clk 0:01:27.1]} 28... Qxg8 {[%clk
0:00:02.6]} 29. Qxg8# {[%clk 0:01:28]} 1-0